fUST/lending_fUST_20250302
["ID","MTS","AMOUNT","RATE_DAILY","PERIOD"]
[354988547,1740857452508,-500.0,0.00025173,2]
[354988548,1740857452519,-500.0,0.00025173,2]
[354988549,1740857452530,-500.0,0.00025173,2]
[354988550,1740857452542,-500.0,0.00025173,2]
[354988551,1740857452553,-929.38,0.00025173,2]
[354988552,1740857452564,-1153.77,0.00025173,2]
[354988553,1740857452576,-500.0,0.00025173,2]
[354988554,1740857452588,-521.67,0.00025173,2]
[354988555,1740857452599,-585.82,0.00025173,2]
[354988556,1740857452610,-500.0,0.00025173,2]
[354988557,1740857452621,-1180.43,0.00025173,2]
[354988558,1740857452633,-500.0,0.00025173,2]
[354988559,1740857452644,-500.0,0.00025173,2]
[354988560,1740857452655,-2450.62,0.00025173,2]
[354988561,1740857452667,-1331.29,0.00025173,2]
[354988562,1740857452678,-151.0,0.00025173,7]
[354988563,1740857452690,-247.390395,0.00025173,7]
[354988564,1740857452707,-308.458914,0.00025173,7]
[354988565,1740857452718,-151.0,0.00025173,7]
[354988566,1740857452729,-308.458914,0.00025173,7]
[354988567,1740857452740,-251.433184,0.00025173,7]
[354988568,1740857452751,-251.433184,0.00025173,7]
[354988569,1740857452762,-2224.926881,0.00025173,7]
[354988570,1740857452773,-2224.926881,0.00025173,7]
[354988571,1740857452784,-151.796906,0.00025173,7]
[354988572,1740857452795,-151.796906,0.00025173,7]
[354988573,1740857452807,-441.528829,0.00025173,7]
[354988574,1740857452821,-151.0,0.000252,17]
[354988575,1740857452832,-10609.55,0.00025205,2]
[354988576,1740857452843,-3142.39,0.00025205,2]
[354988577,1740857452855,-1001.39,0.00025205,5]
[354988578,1740857452865,-1380.89,0.00025205,2]
[354988579,1740857452876,-896.57,0.00025205,2]
[354988580,1740857452887,-943.8,0.00025205,2]
[354988581,1740857452897,-1343.24,0.00025205,2]
[354988582,1740857452907,-1956.41,0.00025205,2]
[354988583,1740857452919,-388.76830001,0.00025205,2]
[354988584,1740857452929,-4242.67,0.00025205,2]
[354988585,1740857452940,-151.0,0.000253,19]
[354988586,1740857452957,-500.0,0.00025341,2]
[354988587,1740857452967,-500.0,0.00025341,2]
[354988588,1740857452978,-500.0,0.00025341,2]
[354988589,1740857452988,-858.69,0.00025342,2]
[354988590,1740857453000,-596.96,0.00025342,2]
[354988591,1740857453010,-1269.89,0.00025342,2]
[354988592,1740857453022,-500.0,0.00025342,2]
[354988593,1740857453032,-500.0,0.00025342,2]
[354988594,1740857453043,-9549.99,0.00025342,2]
[354988595,1740857453054,-6794.48,0.00025342,2]
[354988596,1740857453065,-7164.65,0.00025342,2]
[354988597,1740857453076,-4507.15,0.00025342,2]
[354988598,1740857453086,-3115.05,0.00025342,2]
[354988599,1740857453097,-1841.89,0.00025342,2]
[354988600,1740857453108,-500.0,0.00025342,2]
[354988601,1740857453119,-500.0,0.00025342,2]
[354988602,1740857453130,-1364.94,0.00025342,2]
[354988603,1740857453140,-500.0,0.00025342,2]
[354988604,1740857453151,-1189.95,0.00025342,2]
[354988605,1740857453162,-500.0,0.00025342,2]
[354988606,1740857453173,-5483.32,0.00025342,2]
[354988607,1740857453183,-547.19,0.00025342,2]
[354988608,1740857453196,-9824.25,0.00025342,2]
[354988609,1740857453206,-1885.04,0.00025342,2]
[354988610,1740857453217,-3161.78,0.00025342,2]
[354988611,1740857453228,-500.0,0.00025342,2]
[354988612,1740857453239,-817.1,0.00025342,2]
[354988613,1740857453250,-500.0,0.00025342,2]
[354988614,1740857453264,-3513.97,0.00025342,2]
[354988615,1740857453274,-608.14,0.00025342,2]
[354988616,1740857453285,-500.0,0.00025345,2]
[354988617,1740857453295,-858.44,0.00025345,2]
[354988618,1740857453305,-500.0,0.00025345,2]
[354988619,1740857453316,-500.0,0.00025345,2]
[354988620,1740857453327,-713.06,0.00025345,2]
[354988621,1740857453337,-500.0,0.00025345,2]
[354988622,1740857453348,-500.0,0.00025345,2]
[354988623,1740857453359,-402.88657212,0.00025345,2]
[354988624,1740857453369,-500.0,0.00025345,2]
[354988625,1740857453379,-500.0,0.00025345,2]
[354988626,1740857453390,-659.94,0.00025345,2]
[354988627,1740857453400,-500.0,0.00025345,2]
[354988628,1740857453411,-500.0,0.00025345,2]
[354988629,1740857453421,-500.0,0.00025345,2]
[354988630,1740857453432,-500.0,0.00025345,2]
[354988631,1740857453444,-500.0,0.00025345,2]
[354988632,1740857453455,-707.17,0.00025345,2]
[354988633,1740857453466,-500.0,0.00025345,2]
[354988634,1740857453476,-500.0,0.00025345,2]
[354988635,1740857453487,-500.0,0.00025345,2]
[354988636,1740857453497,-500.0,0.00025345,2]
[354988637,1740857453508,-500.0,0.00025345,2]
[354988638,1740857453519,-564.24,0.00025345,2]
[354988639,1740857453530,-966.87,0.00025345,2]
[354988640,1740857453540,-500.0,0.00025345,2]
[354988641,1740857453551,-500.0,0.00025345,2]
[354988642,1740857453562,-694.01,0.00025345,2]
[354988643,1740857453572,-500.0,0.00025345,2]
[354988644,1740857453583,-500.0,0.00025345,2]
[354988645,1740857453593,-500.0,0.00025345,2]
[354988646,1740857453604,-500.0,0.00025345,2]
[354988647,1740857453614,-571.62,0.00025345,2]
[354988648,1740857453626,-500.0,0.00025345,2]
[354988649,1740857453636,-500.0,0.00025345,2]
[354988650,1740857453646,-1223.73,0.00025345,2]
[354988651,1740857453656,-500.0,0.00025345,2]
[354988652,1740857453667,-500.0,0.00025345,2]
[354988653,1740857453678,-500.0,0.00025345,2]
[354988654,1740857453688,-500.0,0.00025345,2]
[354988655,1740857453700,-500.0,0.00025345,2]
[354988656,1740857453710,-500.0,0.00025345,2]
[354988657,1740857453720,-825.25,0.00025345,2]
[354988658,1740857453730,-248.14206749,0.00025345,2]
[354988659,1740857453740,-535.95,0.00025345,2]
[354988660,1740857453751,-507.6,0.00025345,2]
[354988661,1740857453761,-523.7105927,0.00025345,2]
[354988662,1740857453771,-721.54,0.00025345,2]
[354988663,1740857453782,-500.0,0.00025345,2]
[354988664,1740857453792,-500.0,0.00025345,2]
[354988665,1740857453803,-500.0,0.00025345,2]
[354988666,1740857453814,-500.0,0.00025345,2]
[354988667,1740857453825,-500.0,0.00025345,2]
[354988668,1740857453836,-1722.41,0.00025345,2]
[354988669,1740857453848,-500.0,0.00025345,2]
[354988670,1740857453858,-500.0,0.00025345,2]
[354988671,1740857453868,-1553.32,0.00025345,2]
[354988672,1740857453878,-500.0,0.00025345,2]
[354988673,1740857453890,-500.0,0.00025345,2]
[354988674,1740857453900,-500.0,0.00025345,2]
[354988675,1740857453912,-500.0,0.00025345,2]
[354988676,1740857453922,-655.92,0.00025345,2]
[354988677,1740857453933,-500.0,0.00025345,2]
[354988678,1740857453945,-963.38,0.00025345,2]
[354988679,1740857453955,-1698.14,0.00025345,2]
[354988680,1740857453965,-500.0,0.00025345,2]
[354988681,1740857453975,-500.0,0.00025345,2]
[354988682,1740857453986,-1092.58,0.00025345,2]
[354988683,1740857453996,-500.0,0.00025345,2]
[354988684,1740857454007,-500.0,0.00025345,2]
[354988685,1740857454018,-602.51,0.00025345,2]
[354988686,1740857454028,-500.0,0.00025345,2]
[354988687,1740857454038,-159.55922748,0.00025345,2]
[354988688,1740857454048,-500.0,0.00025345,2]
[354988689,1740857454059,-1131.4,0.00025345,2]
[354988690,1740857454069,-616.8,0.00025345,2]
[354988691,1740857454079,-500.0,0.00025345,2]
[354988692,1740857454090,-500.0,0.00025345,2]
[354988693,1740857454101,-500.0,0.00025345,2]
[354988694,1740857454111,-500.0,0.00025345,2]
[354988695,1740857454122,-296.06224926,0.00025345,2]
[354988696,1740857454132,-1120.81,0.00025345,2]
[354988697,1740857454142,-500.0,0.00025345,2]
[354988698,1740857454154,-500.0,0.00025345,2]
[354988699,1740857454164,-500.0,0.00025345,2]
[354988700,1740857454175,-500.0,0.00025345,2]
[354988701,1740857454186,-500.0,0.00025345,2]
[354988702,1740857454198,-1027.5,0.00025345,2]
[354988703,1740857454209,-500.72,0.00025345,2]
[354988704,1740857454220,-500.0,0.00025345,2]
[354988705,1740857454231,-500.0,0.00025345,2]
[354988706,1740857454242,-1804.23,0.00025345,2]
[354988707,1740857454552,-500.0,0.00025345,2]
[354988708,1740857454572,-500.0,0.00025345,2]
[354988709,1740857454583,-500.0,0.00025345,2]
[354988710,1740857454592,-604.37,0.00025345,2]
[354988711,1740857454602,-500.0,0.00025345,2]
[354988712,1740857454613,-644.13,0.00025345,2]
[354988713,1740857454623,-501.16755942,0.00025345,2]
[354988714,1740857454634,-1201.06,0.00025345,2]
[354988715,1740857454644,-500.0,0.00025345,2]
[354988716,1740857454654,-500.0,0.00025345,2]
[354988717,1740857454665,-678.46,0.00025345,2]
[354988718,1740857454675,-1104.24,0.00025345,2]
[354988719,1740857454685,-500.0,0.00025345,2]
[354988720,1740857454696,-875.88,0.00025345,2]
[354988721,1740857454706,-500.0,0.00025345,2]
[354988722,1740857454716,-500.44,0.00025345,2]
[354988723,1740857454726,-308.956984,0.00025345,7]
[354988724,1740857454736,-308.956984,0.00025345,7]
[354988725,1740857454746,-811.53,0.00025345,2]
[354988726,1740857454755,-1189.34,0.00025345,2]
[354988727,1740857454765,-909.26,0.00025345,2]
[354988728,1740857454775,-1101.03,0.00025345,2]
[354988729,1740857454785,-500.0,0.00025345,2]
[354988730,1740857454794,-1065.65,0.00025345,2]
[354988731,1740857454804,-733.72,0.00025345,2]
[354988732,1740857454818,-500.0,0.00025345,2]
[354988733,1740857454828,-151.0,0.00025345,7]
[354988734,1740857454838,-500.0,0.00025345,2]
[354988735,1740857454848,-500.4,0.00025345,2]
[354988736,1740857454858,-500.0,0.00025345,2]
[354988737,1740857454868,-592.68,0.00025345,2]
[354988738,1740857454877,-1067.56,0.00025345,2]
[354988739,1740857454888,-1975.06,0.00025345,2]
[354988740,1740857454898,-500.0,0.00025345,2]
[354988741,1740857454908,-2073.86,0.00025345,2]
[354988742,1740857454919,-500.0,0.00025345,2]
[354988743,1740857454929,-1489.16,0.00025345,2]
[354988744,1740857454939,-500.0,0.00025345,2]
[354988745,1740857454950,-1929.49,0.00025345,2]
[354988746,1740857454960,-500.0,0.00025345,2]
[354988747,1740857454969,-500.0,0.00025345,2]
[354988748,1740857454979,-1144.466838,0.00025345,7]
[354988749,1740857454989,-1843.61,0.00025345,2]
[354988750,1740857454999,-1144.466838,0.00025345,7]
[354988751,1740857455010,-500.0,0.00025345,2]
[354988752,1740857455020,-1470.76,0.00025345,2]
[354988753,1740857455030,-720.84,0.00025345,2]
[354988754,1740857455039,-4165.14,0.00025345,2]
[354988755,1740857455050,-500.0,0.00025345,2]
[354988756,1740857455060,-1402.04,0.00025345,2]
[354988757,1740857455070,-1069.8,0.00025345,2]
[354988758,1740857455080,-500.0,0.00025345,2]
[354988759,1740857455090,-500.0,0.00025345,2]
[354988760,1740857455100,-500.0,0.00025345,2]
[354988761,1740857455110,-500.0,0.00025345,2]
[354988762,1740857455119,-1832.6,0.00025345,2]
[354988763,1740857455129,-500.0,0.00025345,2]
[354988764,1740857455140,-1174.23,0.00025345,2]
[354988765,1740857455150,-955.78,0.00025345,2]
[354988766,1740857455160,-452.844127,0.00025345,7]
[354988767,1740857455169,-500.0,0.00025345,2]
[354988768,1740857455179,-452.844127,0.00025345,7]
[354988769,1740857455189,-500.0,0.00025345,2]
[354988770,1740857455200,-603.76,0.00025345,2]
[354988771,1740857455210,-500.0,0.00025345,2]
[354988772,1740857455220,-508.02,0.00025345,2]
[354988773,1740857455230,-501.91,0.00025345,2]
[354988774,1740857455239,-284.68877623,0.00025345,2]
[354988775,1740857455249,-609.22123292,0.00025345,2]
[354988776,1740857455258,-500.0,0.00025345,2]
[354988777,1740857455268,-596.44,0.00025345,2]
[354988778,1740857455278,-392.46962678,0.00025345,2]
[354988779,1740857455287,-500.0,0.00025345,2]
[354988780,1740857455297,-699.09,0.00025345,2]
[354988781,1740857455308,-500.0,0.00025345,2]
[354988782,1740857455317,-500.0,0.00025345,2]
[354988783,1740857455327,-961.56,0.00025345,2]
[354988784,1740857455337,-1285.04,0.00025345,2]
[354988785,1740857455346,-151.0,0.00025345,7]
[354988786,1740857455355,-2258.54,0.00025345,2]
[354988787,1740857455365,-1223.59,0.00025345,2]
[354988788,1740857455375,-847.08,0.00025345,2]
[354988789,1740857455385,-1293.13,0.00025345,2]
[354988790,1740857455395,-500.0,0.00025345,2]
[354988791,1740857455405,-308.458914,0.00025345,7]
[354988792,1740857455415,-151.0,0.00025345,7]
[354988793,1740857455425,-308.458914,0.00025345,7]
[354988794,1740857455435,-500.0,0.00025345,2]
[354988795,1740857455447,-1067.33,0.00025345,2]
[354988796,1740857455458,-1474.81,0.00025345,2]
[354988797,1740857455468,-500.0,0.00025345,2]
[354988798,1740857455479,-30608.01,0.00025345,2]
[354988799,1740857455488,-500.0,0.00025345,2]
[354988800,1740857455499,-609.75,0.00025345,2]
[354988801,1740857455508,-500.0,0.00025345,2]
[354988802,1740857455519,-251.433184,0.00025345,7]
[354988803,1740857455529,-500.0,0.00025345,2]
[354988804,1740857455538,-1382.44,0.00025345,2]
[354988805,1740857455548,-500.0,0.00025345,2]
[354988806,1740857455558,-500.0,0.00025345,2]
[354988807,1740857455568,-251.433184,0.00025345,7]
[354988808,1740857455577,-500.0,0.00025345,2]
[354988809,1740857455587,-741.75,0.00025345,2]
[354988810,1740857455596,-735.61,0.00025345,2]
[354988811,1740857455606,-519.61,0.00025345,2]
[354988812,1740857455616,-2261.61,0.00025345,2]
[354988813,1740857455625,-1015.03927294,0.00025345,2]
[354988814,1740857455635,-575.39,0.00025345,2]
[354988815,1740857455644,-500.0,0.00025345,2]
[354988816,1740857455654,-1128.9,0.00025345,2]
[354988817,1740857455664,-500.0,0.00025345,2]
[354988818,1740857455674,-500.0,0.00025345,2]
[354988819,1740857455684,-917.52,0.00025345,2]
[354988820,1740857455694,-1794.6,0.00025345,2]
[354988821,1740857455704,-610.90923007,0.00025345,2]
[354988822,1740857455714,-2224.926881,0.00025345,7]
[354988823,1740857455725,-2224.926881,0.00025345,7]
[354988824,1740857455734,-500.0,0.00025345,2]
[354988825,1740857455744,-761.6,0.00025345,2]
[354988826,1740857455754,-500.0,0.00025345,2]
[354988827,1740857455763,-831.09,0.00025345,2]
[354988828,1740857455773,-500.0,0.00025345,2]
[354988829,1740857455782,-556.869405,0.00025345,2]
[354988830,1740857455792,-500.0,0.00025345,2]
[354988831,1740857455802,-500.0,0.00025345,2]
[354988832,1740857455812,-868.19,0.00025345,2]
[354988833,1740857455822,-5553.82,0.00025345,2]
[354988834,1740857455831,-500.0,0.00025345,2]
[354988835,1740857455846,-500.0,0.00025345,2]
[354988836,1740857455855,-814.970967,0.00025345,7]
[354988837,1740857455865,-500.0,0.00025345,2]
[354988838,1740857455875,-151.0,0.00025345,7]
[354988839,1740857455886,-814.970967,0.00025345,7]
[354988840,1740857455896,-500.0,0.00025345,2]
[354988841,1740857455906,-151.796906,0.00025345,7]
[354988842,1740857455917,-151.796906,0.00025345,7]
[354988843,1740857455926,-151.0,0.00025345,7]
[354988844,1740857455936,-500.0,0.00025345,2]
[354988845,1740857455947,-151.619424,0.00025345,7]
[354988846,1740857455957,-1238.29,0.00025345,2]
[354988847,1740857455967,-500.0,0.00025345,2]
[354988848,1740857455978,-652.4,0.00025345,2]
[354988849,1740857455987,-500.0,0.00025345,2]
[354988850,1740857455997,-8724.27,0.00025345,2]
[354988851,1740857456007,-1806.35,0.00025345,2]
[354988852,1740857456018,-835.77,0.00025345,2]
[354988853,1740857456028,-500.0,0.00025345,2]
[354988854,1740857456037,-500.0,0.00025345,2]
[354988855,1740857456047,-500.0,0.00025345,2]
[354988856,1740857456056,-513.01,0.00025345,2]
[354988857,1740857456066,-2278.27,0.00025345,2]
[354988858,1740857456076,-732.38,0.00025345,2]
[354988859,1740857456086,-500.0,0.00025345,2]
[354988860,1740857456096,-173131.02,0.00025345,2]
[354988861,1740857456105,-500.0,0.00025345,2]
[354988862,1740857456115,-151.660557,0.00025345,7]
[354988863,1740857456125,-500.0,0.00025345,2]
[354988864,1740857456136,-151.0,0.00025345,7]
[354988865,1740857456146,-552.67,0.00025345,2]
[354988866,1740857456155,-500.0,0.00025345,2]
[354988867,1740857456165,-1348.7,0.00025345,2]
[354988868,1740857456175,-500.0,0.00025345,2]
[354988869,1740857456184,-441.528829,0.00025345,7]
[354988870,1740857456194,-3211.95,0.00025345,2]
[354988871,1740857456203,-525.99902752,0.00025345,2]
[354988872,1740857456213,-151.0,0.000254,12]
[354988873,1740857456223,-151.0,0.000254,19]
[354988874,1740857456232,-250.0,0.000254,30]
[354988875,1740857456243,-529.856333,0.00025446,7]
[354988876,1740857456256,-529.856333,0.00025446,7]
[354988877,1740857456265,-413.819042,0.00025446,7]
[354988878,1740857456275,-413.819042,0.00025446,7]
[354988879,1740857456285,-159.015658,0.00025446,7]
[354988880,1740857456295,-159.015658,0.00025446,7]
[354988881,1740857456305,-151.0,0.00025446,7]
[354988882,1740857456323,-151.0,0.00025446,7]
[354988883,1740857456333,-184.46586,0.00025446,7]
[354988884,1740857456342,-184.46586,0.00025446,7]
[354988885,1740857456352,-151.0,0.00025446,7]
[354988886,1740857456361,-652.41,0.00025446,2]
[354988887,1740857456370,-151.0,0.00025446,7]
[354988888,1740857456380,-253.374934,0.00025446,7]
[354988889,1740857456390,-151.0,0.00025446,7]
[354988890,1740857456399,-151.0,0.00025446,7]
[354988891,1740857456408,-253.374934,0.00025446,7]
[354988892,1740857456418,-520.12528,0.00025446,7]
[354988893,1740857456428,-520.12528,0.00025446,7]
[354988894,1740857456438,-189.764472,0.00025446,7]
[354988895,1740857456447,-189.764472,0.00025446,7]
[354988896,1740857456457,-500.0,0.00025446,2]
[354988897,1740857456467,-151.0,0.00025446,7]
[354988898,1740857456476,-500.0,0.00025446,2]
[354988899,1740857456486,-500.0,0.00025446,2]
[354988900,1740857456495,-151.0,0.00025446,7]
[354988901,1740857456505,-500.0,0.00025446,2]
[354988902,1740857456514,-151.0,0.00025446,7]
[354988903,1740857456524,-500.0,0.00025446,2]
[354988904,1740857456534,-938.62,0.00025446,2]
[354988905,1740857456543,-151.0,0.00025446,7]
[354988906,1740857456552,-267.568537,0.00025446,7]
[354988907,1740857456562,-267.568537,0.00025446,7]
[354988908,1740857456576,-1486.0,0.00025446,2]
[354988909,1740857456585,-1323.27,0.00025446,2]
[354988910,1740857456595,-898.0,0.00025446,2]
[354988911,1740857456604,-631.85,0.00025446,2]
[354988912,1740857456614,-500.0,0.00025446,2]
[354988913,1740857456623,-500.0,0.00025446,2]
[354988914,1740857456633,-500.0,0.00025446,2]
[354988915,1740857456643,-500.0,0.00025446,2]
[354988916,1740857456653,-507.43,0.00025446,2]
[354988917,1740857456663,-235.714997,0.00025446,7]
[354988918,1740857456673,-313.318478,0.00025446,7]
[354988919,1740857456683,-500.0,0.00025446,2]
[354988920,1740857456694,-235.714997,0.00025446,7]
[354988921,1740857456703,-313.318478,0.00025446,7]
[354988922,1740857456713,-2335.86,0.00025446,2]
[354988923,1740857456723,-151.0,0.00025446,7]
[354988924,1740857456732,-151.0,0.00025446,7]
[354988925,1740857456742,-500.0,0.00025446,2]
[354988926,1740857456752,-151.0,0.00025446,7]
[354988927,1740857456769,-1590.82,0.00025446,2]
[354988928,1740857456779,-151.0,0.00025446,7]
[354988929,1740857456789,-1820.71,0.00025446,2]
[354988930,1740857456800,-151.0,0.00025446,7]
[354988931,1740857456810,-151.0,0.00025446,7]
[354988932,1740857456821,-151.0,0.00025446,7]
[354988933,1740857456830,-560.17873018,0.00025446,2]
[354988934,1740857456843,-500.0,0.00025446,2]
[354988935,1740857456853,-2003.120147,0.00025446,7]
[354988936,1740857456863,-2003.120147,0.00025446,7]
[354988937,1740857456873,-500.0,0.00025446,2]
[354988938,1740857456883,-500.0,0.00025446,2]
[354988939,1740857456893,-907.8,0.00025446,2]
[354988940,1740857456903,-2347.56,0.00025446,2]
[354988941,1740857456913,-676.9,0.00025446,2]
[354988942,1740857456923,-500.0,0.00025446,2]
[354988943,1740857456933,-779.62,0.00025446,2]
[354988944,1740857456944,-308.956984,0.00025446,7]
[354988945,1740857457026,-842.37,0.00025446,2]
[354988946,1740857457037,-308.956984,0.00025446,7]
[354988947,1740857457046,-783.61,0.00025446,2]
[354988948,1740857457055,-500.0,0.00025446,2]
[354988949,1740857457064,-500.0,0.00025446,2]
[354988950,1740857457074,-471.236126,0.00025446,7]
[354988951,1740857457083,-471.236126,0.00025446,7]
[354988952,1740857457093,-151.0,0.00025446,7]
[354988953,1740857457102,-522.64,0.00025446,2]
[354988954,1740857457112,-1261.231628,0.00025446,7]
[354988955,1740857457122,-1261.231628,0.00025446,7]
[354988956,1740857457132,-1335.89,0.00025446,2]
[354988957,1740857457141,-1144.466838,0.00025446,7]
[354988958,1740857457151,-1144.466838,0.00025446,7]
[354988959,1740857457160,-1712.0,0.00025446,2]
[354988960,1740857457169,-500.0,0.00025446,2]
[354988961,1740857457179,-500.0,0.00025446,2]
[354988962,1740857457187,-548.51,0.00025446,2]
[354988963,1740857457198,-4407.18,0.00025446,2]
[354988964,1740857457208,-452.844127,0.00025446,7]
[354988965,1740857457217,-452.844127,0.00025446,7]
[354988966,1740857457227,-500.0,0.00025446,2]
[354988967,1740857457236,-265.309398,0.00025446,7]
[354988968,1740857457245,-265.309398,0.00025446,7]
[354988969,1740857457255,-2144.99504,0.00025446,5]
[354988970,1740857457264,-2144.99504,0.00025446,5]
[354988971,1740857457273,-500.0,0.00025446,2]
[354988972,1740857457282,-500.0,0.00025446,2]
[354988973,1740857457291,-500.0,0.00025446,2]
[354988974,1740857457300,-814.970967,0.00025446,7]
[354988975,1740857457309,-160.871652,0.00025446,7]
[354988976,1740857457318,-814.970967,0.00025446,7]
[354988977,1740857457328,-19624.61182001,0.00025446,7]
[354988978,1740857457337,-151.0,0.00025446,7]
[354988979,1740857457347,-500.0,0.00025446,2]
[354988980,1740857457356,-1187.59,0.00025446,2]
[354988981,1740857457365,-1428.98,0.00025446,2]
[354988982,1740857457375,-542.1,0.00025446,2]
[354988983,1740857457385,-500.0,0.00025446,30]
[354988984,1740857457394,-500.0,0.00025446,30]
[354988985,1740857457403,-500.0,0.00025446,30]
[354988986,1740857457413,-151.0,0.00025446,7]
[354988987,1740857457423,-500.0,0.00025446,30]
[354988988,1740857457432,-500.0,0.00025446,30]
[354988989,1740857457442,-500.0,0.00025446,30]
[354988990,1740857457451,-500.0,0.00025446,30]
[354988991,1740857457461,-500.0,0.00025446,30]
[354988992,1740857457470,-500.0,0.00025446,30]
[354988993,1740857457480,-500.0,0.00025446,30]
[354988994,1740857457490,-500.0,0.00025446,30]
[354988995,1740857457499,-546.636168,0.00025446,30]
[354988996,1740857457509,-151.0,0.00025447,7]
[354988997,1740857457519,-151.0,0.00025447,7]
[354988998,1740857457528,-500.0,0.00025447,2]
[354988999,1740857457539,-500.0,0.00025447,2]
[354989000,1740857457548,-151.0,0.00025447,7]
[354989001,1740857457558,-588.39,0.00025447,2]
[354989002,1740857457568,-522.53,0.00025447,2]
[354989003,1740857457578,-863.79,0.00025447,2]
[354989004,1740857457587,-492.40166588,0.00025447,2]
[354989005,1740857457597,-500.0,0.00025447,2]
[354989006,1740857457606,-624.04,0.00025447,2]
[354989007,1740857457616,-500.0,0.00025447,2]
[354989008,1740857457625,-948.0,0.00025447,2]
[354989009,1740857457635,-500.0,0.00025447,2]
[354989010,1740857457644,-500.0,0.00025447,2]
[354989011,1740857457654,-500.0,0.00025447,2]
[354989012,1740857457663,-929.38,0.00025447,2]
[354989013,1740857457673,-1153.77,0.00025447,2]
[354989014,1740857457682,-500.0,0.00025447,2]
[354989015,1740857457693,-521.67,0.00025447,2]
[354989016,1740857457702,-585.82,0.00025447,2]
[354989017,1740857457712,-500.0,0.00025447,2]
[354989018,1740857457721,-1180.43,0.00025447,2]
[354989019,1740857457731,-500.0,0.00025447,2]
[354989020,1740857457740,-500.0,0.00025447,2]
[354989021,1740857457750,-2450.62,0.00025447,2]
[354989022,1740857457759,-1331.29,0.00025447,2]
[354989023,1740857457769,-500.0,0.00025473,2]
[354989024,1740857457778,-2019.9117322,0.00025475,4]
[354989025,1740857457788,-10609.55,0.00025479,2]
[354989026,1740857457797,-3142.39,0.00025479,2]
[354989027,1740857457807,-1001.39,0.00025479,5]
[354989028,1740857457819,-1380.89,0.00025479,2]
[354989029,1740857457829,-896.57,0.00025479,2]
[354989030,1740857457840,-943.8,0.00025479,2]
[354989031,1740857457850,-1343.24,0.00025479,2]
[354989032,1740857457860,-1956.41,0.00025479,2]
[354989033,1740857457869,-151.0,0.000255,17]
[354989034,1740857457879,-151.0,0.000256,15]
[354989035,1740857457891,-1409.94870716,0.000256,4]
[354989036,1740857457900,-1409.94870693,0.000256,4]
[354989037,1740857457910,-997.10838568,0.00025604,2]
[354989038,1740857457920,-500.0,0.00025615,2]
[354989039,1740857457930,-299.37873182,0.00025615,2]
[354989040,1740857457939,-858.69,0.00025616,2]
[354989041,1740857457955,-596.96,0.00025616,2]
[354989042,1740857457965,-1269.89,0.00025616,2]
[354989043,1740857457975,-500.0,0.00025616,2]
[354989044,1740857457985,-500.0,0.00025616,2]
[354989045,1740857457994,-9549.99,0.00025616,2]
[354989046,1740857458004,-6794.48,0.00025616,2]